[Event "Late-Titled-Tuesday-Blitz-February-06-2024"]
[Site "Chess.com"]
[Date "2024.02.06"]
[Round "6"]
[White "Mazetovic"]
[Black "KorolDimitriy75"]
[Result "1-0"]
[WhiteElo "2618"]
[BlackElo "2391"]
[TimeControl "180+1"]
[EndTime "15:06:21 PST"]
[Termination "Mazetovic won on time"]

1. e4 {[%clk 0:02:59.2]} 1... c5 {[%clk 0:03:00.2]} 2. Nf3 {[%clk 0:02:58.7]}
2... d6 {[%clk 0:03:00.6]} 3. Bb5+ {[%clk 0:02:58.4]} 3... Nd7 {[%clk
0:03:00.2]} 4. d4 {[%clk 0:02:50.5]} 4... Nf6 {[%clk 0:02:59.8]} 5. e5 {[%clk
0:02:44.5]} 5... cxd4 {[%clk 0:02:59.1]} 6. Qxd4 {[%clk 0:02:22.1]} 6... dxe5
{[%clk 0:02:58.6]} 7. Nxe5 {[%clk 0:02:22.1]} 7... g6 {[%clk 0:02:59]} 8. Nc3
{[%clk 0:02:03.9]} 8... Bg7 {[%clk 0:02:58.6]} 9. Bg5 {[%clk 0:02:02.8]} 9...
O-O {[%clk 0:02:58]} 10. O-O-O {[%clk 0:01:58.1]} 10... Qa5 {[%clk 0:02:26.3]}
11. Nxd7 {[%clk 0:01:42.7]} 11... Nxd7 {[%clk 0:02:14.7]} 12. Qa4 {[%clk
0:01:33.2]} 12... Bxc3 {[%clk 0:01:24.5]} 13. Qxa5 {[%clk 0:00:57.5]} 13... Bxa5
{[%clk 0:01:25.4]} 14. Bxd7 {[%clk 0:00:56.3]} 14... f6 {[%clk 0:00:27.8]} 15.
Be3 {[%clk 0:00:55.2]} 15... Rf7 {[%clk 0:00:20.3]} 16. c4 {[%clk 0:00:40.1]}
16... e5 {[%clk 0:00:17.6]} 17. Rd5 {[%clk 0:00:15.7]} 17... Bxd7 {[%clk
0:00:09.3]} 18. Rxa5 {[%clk 0:00:15.6]} 18... a6 {[%clk 0:00:09.3]} 19. Rd1
{[%clk 0:00:14.4]} 19... Bc6 {[%clk 0:00:09.4]} 20. f3 {[%clk 0:00:13.9]} 20...
Rd7 {[%clk 0:00:05.9]} 21. Rxd7 {[%clk 0:00:13.4]} 21... Bxd7 {[%clk 0:00:06.8]}
22. Rd5 {[%clk 0:00:13.3]} 22... Bc6 {[%clk 0:00:06.5]} 23. Rd6 {[%clk
0:00:13.5]} 23... Kf7 {[%clk 0:00:06.5]} 24. b4 {[%clk 0:00:13.3]} 24... Rc8
{[%clk 0:00:05.7]} 25. Kb2 {[%clk 0:00:13]} 25... Rc7 {[%clk 0:00:04.9]} 26. Kc3
{[%clk 0:00:10.9]} 26... Rd7 {[%clk 0:00:05.2]} 27. Rxd7+ {[%clk 0:00:11]} 27...
Bxd7 {[%clk 0:00:06.1]} 28. Kb3 {[%clk 0:00:11.1]} 28... Ke6 {[%clk 0:00:06.1]}
29. a4 {[%clk 0:00:11.7]} 29... f5 {[%clk 0:00:04.9]} 30. b5 {[%clk 0:00:11.9]}
30... h5 {[%clk 0:00:02.1]} 31. h4 {[%clk 0:00:11.6]} 31... f4 {[%clk
0:00:01.2]} 32. Bb6 {[%clk 0:00:10]} 1-0

[Event "Late-Titled-Tuesday-Blitz-February-06-2024"]
[Site "Chess.com"]
[Date "2024.02.06"]
[Round "6"]
[White "Englishman_18"]
[Black "EsmeraldasAnderson03"]
[Result "1-0"]
[WhiteElo "2267"]
[BlackElo "2387"]
[TimeControl "180+1"]
[EndTime "15:06:22 PST"]
[Termination "Englishman_18 won on time"]

1. Nf3 {[%clk 0:03:00.9]} 1... d5 {[%clk 0:02:59.8]} 2. g3 {[%clk 0:02:59]} 2...
c5 {[%clk 0:02:59.5]} 3. Bg2 {[%clk 0:02:58]} 3... Nf6 {[%clk 0:02:58]} 4. O-O
{[%clk 0:02:56]} 4... h6 {[%clk 0:02:57.3]} 5. c4 {[%clk 0:02:51.5]} 5... Nc6
{[%clk 0:02:48.7]} 6. b3 {[%clk 0:02:11.2]} 6... e6 {[%clk 0:02:42.4]} 7. Bb2
{[%clk 0:02:08.2]} 7... Be7 {[%clk 0:02:40.6]} 8. e3 {[%clk 0:02:08.2]} 8... O-O
{[%clk 0:02:40.3]} 9. Qe2 {[%clk 0:02:07.6]} 9... b6 {[%clk 0:02:40.7]} 10. Rd1
{[%clk 0:02:07]} 10... Bb7 {[%clk 0:02:40.9]} 11. d4 {[%clk 0:01:43.5]} 11...
Rc8 {[%clk 0:02:40.4]} 12. cxd5 {[%clk 0:01:40.6]} 12... exd5 {[%clk 0:02:41.3]}
13. Nc3 {[%clk 0:01:39.6]} 13... Rc7 {[%clk 0:02:38.7]} 14. Rac1 {[%clk
0:01:38.4]} 14... Qa8 {[%clk 0:02:32.6]} 15. dxc5 {[%clk 0:01:36.3]} 15... bxc5
{[%clk 0:02:33.5]} 16. Na4 {[%clk 0:01:14.2]} 16... Nb4 {[%clk 0:02:20]} 17. a3
{[%clk 0:01:12]} 17... Ba6 {[%clk 0:02:16.4]} 18. Qd2 {[%clk 0:01:01.6]} 18...
Nd3 {[%clk 0:02:15.7]} 19. Rc2 {[%clk 0:00:48.9]} 19... Ne4 {[%clk 0:01:36.8]}
20. Qa5 {[%clk 0:00:46.7]} 20... Qb7 {[%clk 0:01:28]} 21. Ne1 {[%clk 0:00:25.3]}
21... Nxb2 {[%clk 0:00:24.4]} 22. Rxb2 {[%clk 0:00:21.3]} 22... Bf6 {[%clk
0:00:21]} 23. Rbb1 {[%clk 0:00:18.6]} 23... Be2 {[%clk 0:00:17.5]} 24. Bxe4
{[%clk 0:00:12]} 24... dxe4 {[%clk 0:00:16.2]} 25. Rd2 {[%clk 0:00:10.1]} 25...
Qa6 {[%clk 0:00:11.4]} 26. Qxa6 {[%clk 0:00:09]} 26... Bxa6 {[%clk 0:00:10.8]}
27. Rc1 {[%clk 0:00:08.9]} 27... Rfc8 {[%clk 0:00:09.8]} 28. Rdc2 {[%clk
0:00:08.8]} 28... Be7 {[%clk 0:00:05.8]} 29. b4 {[%clk 0:00:06.7]} 29... c4
{[%clk 0:00:04.8]} 30. Nc3 {[%clk 0:00:06.8]} 30... Bb7 {[%clk 0:00:04.9]} 31.
Rd2 {[%clk 0:00:06.3]} 1-0

[Event "Late-Titled-Tuesday-Blitz-February-06-2024"]
[Site "Chess.com"]
[Date "2024.02.06"]
[Round "6"]
[White "maurovargas01"]
[Black "Iuckyducky"]
[Result "0-1"]
[WhiteElo "1898"]
[BlackElo "2263"]
[TimeControl "180+1"]
[EndTime "15:06:23 PST"]
[Termination "Iuckyducky won on time"]

1. e4 {[%clk 0:03:00]} 1... c6 {[%clk 0:02:59.5]} 2. Nc3 {[%clk 0:02:59.1]} 2...
d5 {[%clk 0:02:59.5]} 3. d3 {[%clk 0:02:59.5]} 3... Nf6 {[%clk 0:02:58.5]} 4.
Qe2 {[%clk 0:02:58.6]} 4... Bg4 {[%clk 0:02:55.3]} 5. f3 {[%clk 0:02:57.9]} 5...
Bh5 {[%clk 0:02:52.1]} 6. e5 {[%clk 0:02:53.8]} 6... Nfd7 {[%clk 0:02:43.7]} 7.
h4 {[%clk 0:02:49.1]} 7... h6 {[%clk 0:02:13.9]} 8. g4 {[%clk 0:02:47.8]} 8...
Bg6 {[%clk 0:02:14.3]} 9. h5 {[%clk 0:02:47.7]} 9... Bh7 {[%clk 0:02:14.6]} 10.
e6 {[%clk 0:02:42.5]} 10... Nf6 {[%clk 0:02:14.1]} 11. exf7+ {[%clk 0:02:37.3]}
11... Kxf7 {[%clk 0:02:15]} 12. Nh3 {[%clk 0:02:36.7]} 12... Nbd7 {[%clk
0:02:07.9]} 13. Nf4 {[%clk 0:02:19.5]} 13... e5 {[%clk 0:02:04.3]} 14. Nh3
{[%clk 0:02:10.6]} 14... Bd6 {[%clk 0:02:02.3]} 15. Bd2 {[%clk 0:02:07]} 15...
Re8 {[%clk 0:02:02.5]} 16. O-O-O {[%clk 0:02:06.1]} 16... Kg8 {[%clk 0:01:50.4]}
17. Rg1 {[%clk 0:01:57.7]} 17... Bc5 {[%clk 0:01:12.9]} 18. Rg2 {[%clk
0:01:48.2]} 18... Qe7 {[%clk 0:00:58.1]} 19. g5 {[%clk 0:01:43.3]} 19... hxg5
{[%clk 0:00:54.2]} 20. Rxg5 {[%clk 0:01:29.1]} 20... Qf7 {[%clk 0:00:42.7]} 21.
Qg2 {[%clk 0:01:27.1]} 21... Nxh5 {[%clk 0:00:36.3]} 22. Be2 {[%clk 0:00:30.9]}
22... Ndf6 {[%clk 0:00:31.4]} 23. Rg1 {[%clk 0:00:26.5]} 23... d4 {[%clk
0:00:30.4]} 24. Ne4 {[%clk 0:00:20.9]} 24... Bxe4 {[%clk 0:00:21.1]} 25. fxe4
{[%clk 0:00:15.5]} 25... Qxa2 {[%clk 0:00:12.4]} 26. Rxg7+ {[%clk 0:00:10.1]}
26... Kh8 {[%clk 0:00:12.8]} 27. Kd1 {[%clk 0:00:04]} 27... Rg8 {[%clk
0:00:08.7]} 28. Bxh5 {[%clk 0:00:01.2]} 28... Nxh5 {[%clk 0:00:07.1]} 0-1

[Event "Late-Titled-Tuesday-Blitz-February-06-2024"]
[Site "Chess.com"]
[Date "2024.02.06"]
[Round "6"]
[White "ural58"]
[Black "The_Straightforward_Rook"]
[Result "1-0"]
[WhiteElo "2478"]
[BlackElo "2419"]
[TimeControl "180+1"]
[EndTime "15:06:25 PST"]
[Termination "ural58 won by checkmate"]

1. e4 {[%clk 0:02:58.5]} 1... c6 {[%clk 0:02:43.3]} 2. Nc3 {[%clk 0:02:56.7]}
2... d5 {[%clk 0:02:44.2]} 3. Nf3 {[%clk 0:02:56.7]} 3... dxe4 {[%clk
0:02:44.3]} 4. Nxe4 {[%clk 0:02:56.7]} 4... Nf6 {[%clk 0:02:44.8]} 5. Qe2 {[%clk
0:02:56.8]} 5... Nxe4 {[%clk 0:02:44.7]} 6. Qxe4 {[%clk 0:02:56.7]} 6... Qd5
{[%clk 0:02:45.6]} 7. Qf4 {[%clk 0:02:56.4]} 7... Qf5 {[%clk 0:02:35.7]} 8. Qe3
{[%clk 0:02:55.8]} 8... Qxc2 {[%clk 0:02:32.4]} 9. Bd3 {[%clk 0:02:53.4]} 9...
Qa4 {[%clk 0:02:30.7]} 10. O-O {[%clk 0:02:52.1]} 10... e6 {[%clk 0:02:21.6]}
11. b3 {[%clk 0:02:51.6]} 11... Qa5 {[%clk 0:02:06.5]} 12. Bb2 {[%clk
0:02:50.4]} 12... Nd7 {[%clk 0:01:54.7]} 13. Rfe1 {[%clk 0:02:26.7]} 13... Nf6
{[%clk 0:01:52.5]} 14. Ne5 {[%clk 0:02:25.1]} 14... Be7 {[%clk 0:01:47.8]} 15.
Nc4 {[%clk 0:02:23.3]} 15... Qh5 {[%clk 0:01:40.2]} 16. h3 {[%clk 0:02:21.4]}
16... O-O {[%clk 0:01:38.5]} 17. g4 {[%clk 0:02:20.3]} 17... Qh4 {[%clk
0:01:32.7]} 18. Kg2 {[%clk 0:02:18.2]} 18... Nd5 {[%clk 0:01:19.7]} 19. Qe4
{[%clk 0:02:00.7]} 19... f5 {[%clk 0:01:12.3]} 20. gxf5 {[%clk 0:01:58.3]} 20...
exf5 {[%clk 0:01:13.2]} 21. Qxh4 {[%clk 0:01:50.7]} 21... Bxh4 {[%clk
0:01:14.1]} 22. Be5 {[%clk 0:01:42.1]} 22... f4 {[%clk 0:01:08.7]} 23. Bd6
{[%clk 0:01:27]} 23... f3+ {[%clk 0:01:03.3]} 24. Kg1 {[%clk 0:01:21.7]} 24...
Rd8 {[%clk 0:00:58.6]} 25. Bg3 {[%clk 0:01:14.5]} 25... Bxg3 {[%clk 0:00:47.4]}
26. fxg3 {[%clk 0:01:14.6]} 26... Bxh3 {[%clk 0:00:48]} 27. Kf2 {[%clk
0:01:14.5]} 27... Bg2 {[%clk 0:00:44.4]} 28. Be4 {[%clk 0:01:13.5]} 28... Nb6
{[%clk 0:00:24.4]} 29. d3 {[%clk 0:01:09.8]} 29... Nxc4 {[%clk 0:00:23.5]} 30.
bxc4 {[%clk 0:01:09.4]} 30... Rd6 {[%clk 0:00:20.1]} 31. Rab1 {[%clk 0:01:03]}
31... b6 {[%clk 0:00:18.7]} 32. c5 {[%clk 0:01:03.3]} 32... bxc5 {[%clk
0:00:18.3]} 33. Rb7 {[%clk 0:01:03.3]} 33... Rad8 {[%clk 0:00:18.7]} 34. Rc1
{[%clk 0:01:02.5]} 34... Rxd3 {[%clk 0:00:18.3]} 35. Bxd3 {[%clk 0:01:01.9]}
35... Rxd3 {[%clk 0:00:19.2]} 36. Rc2 {[%clk 0:00:50.5]} 36... c4 {[%clk
0:00:17.5]} 37. Rxa7 {[%clk 0:00:39.1]} 37... Rd1 {[%clk 0:00:16.1]} 38. Rb2
{[%clk 0:00:36.1]} 38... Rf1+ {[%clk 0:00:11.4]} 39. Ke3 {[%clk 0:00:36.1]}
39... Re1+ {[%clk 0:00:12]} 40. Kf4 {[%clk 0:00:35.4]} 40... Re2 {[%clk
0:00:09.5]} 41. Rb8+ {[%clk 0:00:34.3]} 41... Re8 {[%clk 0:00:02.6]} 42. Rxe8#
{[%clk 0:00:33.6]} 1-0

[Event "Late-Titled-Tuesday-Blitz-February-06-2024"]
[Site "Chess.com"]
[Date "2024.02.06"]
[Round "6"]
[White "Payyappat"]
[Black "mr_gustavo"]
[Result "1/2-1/2"]
[WhiteElo "2531"]
[BlackElo "2694"]
[TimeControl "180+1"]
[EndTime "15:06:27 PST"]
[Termination "Game drawn by repetition"]

1. e4 {[%clk 0:03:00.9]} 1... e6 {[%clk 0:02:59.5]} 2. d4 {[%clk 0:02:59.9]}
2... d5 {[%clk 0:03:00.2]} 3. Nc3 {[%clk 0:03:00.8]} 3... dxe4 {[%clk
0:03:00.8]} 4. Nxe4 {[%clk 0:03:01.7]} 4... Bd7 {[%clk 0:03:01.4]} 5. Nf3 {[%clk
0:02:59.9]} 5... Bc6 {[%clk 0:03:02]} 6. Bd3 {[%clk 0:02:59.8]} 6... Nd7 {[%clk
0:03:02.6]} 7. O-O {[%clk 0:02:58.7]} 7... Ngf6 {[%clk 0:03:03.2]} 8. Nxf6+
{[%clk 0:02:56.6]} 8... Nxf6 {[%clk 0:03:02]} 9. c3 {[%clk 0:02:56.6]} 9... Bxf3
{[%clk 0:02:57.7]} 10. Qxf3 {[%clk 0:02:57.5]} 10... c6 {[%clk 0:02:58.3]} 11.
Bg5 {[%clk 0:02:56.8]} 11... Be7 {[%clk 0:02:58.8]} 12. Rfe1 {[%clk 0:02:55.3]}
12... O-O {[%clk 0:02:57.4]} 13. Qg3 {[%clk 0:02:54.3]} 13... Re8 {[%clk
0:02:53.7]} 14. Qh4 {[%clk 0:02:53.2]} 14... g6 {[%clk 0:02:52.7]} 15. f4 {[%clk
0:02:45.8]} 15... Nd5 {[%clk 0:02:50.2]} 16. Kh1 {[%clk 0:02:32.5]} 16... Qc7
{[%clk 0:02:21.5]} 17. c4 {[%clk 0:02:08.8]} 17... Nb6 {[%clk 0:02:06.6]} 18.
Re3 {[%clk 0:02:01.2]} 18... Rad8 {[%clk 0:01:53.8]} 19. Rh3 {[%clk 0:01:38.4]}
19... h5 {[%clk 0:01:53.1]} 20. g4 {[%clk 0:01:38.1]} 20... Qxf4 {[%clk
0:00:24.4]} 21. Bxf4 {[%clk 0:01:36.5]} 21... Bxh4 {[%clk 0:00:24.2]} 22. Rxh4
{[%clk 0:01:37.2]} 22... Rxd4 {[%clk 0:00:23.7]} 23. gxh5 {[%clk 0:01:36.9]}
23... Rxd3 {[%clk 0:00:17.1]} 24. Rg1 {[%clk 0:01:12.3]} 24... Nxc4 {[%clk
0:00:09.1]} 25. b3 {[%clk 0:00:38.4]} 25... Nb6 {[%clk 0:00:06.2]} 26. hxg6
{[%clk 0:00:30.7]} 26... f6 {[%clk 0:00:06.8]} 27. Rh7 {[%clk 0:00:13.9]} 27...
Nd5 {[%clk 0:00:05.6]} 28. Bh6 {[%clk 0:00:12.6]} 28... Rh3 {[%clk 0:00:04.6]}
29. Rg7+ {[%clk 0:00:08.7]} 29... Kh8 {[%clk 0:00:05]} 30. Rh7+ {[%clk
0:00:08.9]} 30... Kg8 {[%clk 0:00:05.6]} 31. Rg7+ {[%clk 0:00:04.5]} 31... Kh8
{[%clk 0:00:06.1]} 32. Rh7+ {[%clk 0:00:01.6]} 32... Kg8 {[%clk 0:00:06.1]}
1/2-1/2

[Event "Late-Titled-Tuesday-Blitz-February-06-2024"]
[Site "Chess.com"]
[Date "2024.02.06"]
[Round "6"]
[White "igorknyazev"]
[Black "FredddieCroderg"]
[Result "1-0"]
[WhiteElo "2174"]
[BlackElo "2369"]
[TimeControl "180+1"]
[EndTime "15:06:29 PST"]
[Termination "igorknyazev won on time"]

1. e4 {[%clk 0:03:00.9]} 1... c6 {[%clk 0:00:56.5]} 2. d4 {[%clk 0:02:49]} 2...
d5 {[%clk 0:00:56.4]} 3. Nc3 {[%clk 0:02:49.9]} 3... dxe4 {[%clk 0:00:55.2]} 4.
Nxe4 {[%clk 0:02:50.5]} 4... Nf6 {[%clk 0:00:55.5]} 5. Nxf6+ {[%clk 0:02:49.2]}
5... exf6 {[%clk 0:00:56.4]} 6. Nf3 {[%clk 0:02:49.5]} 6... Bd6 {[%clk
0:00:56.4]} 7. Bc4 {[%clk 0:02:43.8]} 7... O-O {[%clk 0:00:54.2]} 8. Be3 {[%clk
0:02:43.8]} 8... Bg4 {[%clk 0:00:54.1]} 9. h3 {[%clk 0:02:41.8]} 9... Bh5 {[%clk
0:00:53.6]} 10. g4 {[%clk 0:02:39.7]} 10... Bg6 {[%clk 0:00:52.8]} 11. Qd2
{[%clk 0:02:39.4]} 11... Be4 {[%clk 0:00:50.2]} 12. Be2 {[%clk 0:02:35.9]} 12...
Nd7 {[%clk 0:00:50.1]} 13. Rg1 {[%clk 0:02:26]} 13... Nb6 {[%clk 0:00:47.4]} 14.
b3 {[%clk 0:02:17]} 14... Nd5 {[%clk 0:00:45.7]} 15. c3 {[%clk 0:02:08.4]} 15...
a5 {[%clk 0:00:43.2]} 16. a3 {[%clk 0:02:03.1]} 16... b5 {[%clk 0:00:40.2]} 17.
g5 {[%clk 0:01:57.9]} 17... f5 {[%clk 0:00:39.1]} 18. Ne5 {[%clk 0:01:50.9]}
18... b4 {[%clk 0:00:33]} 19. c4 {[%clk 0:01:42.3]} 19... Nc3 {[%clk 0:00:29.2]}
20. f3 {[%clk 0:01:36.3]} 20... Nxe2 {[%clk 0:00:20.4]} 21. Qxe2 {[%clk
0:01:33.9]} 21... Bxe5 {[%clk 0:00:16.9]} 22. fxe4 {[%clk 0:00:55.5]} 22... Bxd4
{[%clk 0:00:16.4]} 23. Rd1 {[%clk 0:00:55.3]} 23... c5 {[%clk 0:00:15.5]} 24.
exf5 {[%clk 0:00:52.7]} 24... bxa3 {[%clk 0:00:14.7]} 25. f6 {[%clk 0:00:48.2]}
25... g6 {[%clk 0:00:12.7]} 26. Bxd4 {[%clk 0:00:43.4]} 26... cxd4 {[%clk
0:00:12.2]} 27. Qg4 {[%clk 0:00:36.9]} 27... Re8+ {[%clk 0:00:11.2]} 28. Kd2
{[%clk 0:00:36.9]} 28... Qd6 {[%clk 0:00:10.5]} 29. Kc2 {[%clk 0:00:33.1]} 29...
Qb4 {[%clk 0:00:09.8]} 30. Rxd4 {[%clk 0:00:22.9]} 30... Re2+ {[%clk 0:00:08.6]}
31. Qxe2 {[%clk 0:00:22]} 31... a4 {[%clk 0:00:06.9]} 32. Qd3 {[%clk 0:00:20.5]}
32... Re8 {[%clk 0:00:05.2]} 33. Rd1 {[%clk 0:00:14.9]} 33... axb3+ {[%clk
0:00:04.3]} 34. Qxb3 {[%clk 0:00:13.9]} 34... Re2+ {[%clk 0:00:04.7]} 35. R4d2
{[%clk 0:00:13.8]} 35... Qa5 {[%clk 0:00:01.1]} 36. Rxe2 {[%clk 0:00:12.8]} 1-0

[Event "Late-Titled-Tuesday-Blitz-February-06-2024"]
[Site "Chess.com"]
[Date "2024.02.06"]
[Round "6"]
[White "ChessLover0108"]
[Black "iwanyu"]
[Result "1-0"]
[WhiteElo "3014"]
[BlackElo "2826"]
[TimeControl "180+1"]
[EndTime "15:06:31 PST"]
[Termination "ChessLover0108 won by checkmate"]

1. g3 {[%clk 0:03:00.9]} 1... d5 {[%clk 0:02:58.4]} 2. Bg2 {[%clk 0:03:00.3]}
2... c6 {[%clk 0:02:59]} 3. d3 {[%clk 0:02:53.9]} 3... h6 {[%clk 0:02:57.6]} 4.
Nd2 {[%clk 0:02:54]} 4... Bf5 {[%clk 0:02:57.3]} 5. c4 {[%clk 0:02:52.7]} 5...
e6 {[%clk 0:02:56.8]} 6. cxd5 {[%clk 0:02:51]} 6... cxd5 {[%clk 0:02:54.7]} 7.
Ngf3 {[%clk 0:02:50]} 7... Nc6 {[%clk 0:02:53.8]} 8. O-O {[%clk 0:02:48.2]} 8...
Nf6 {[%clk 0:02:52.9]} 9. b3 {[%clk 0:02:41.3]} 9... Be7 {[%clk 0:02:50.1]} 10.
Bb2 {[%clk 0:02:41.7]} 10... O-O {[%clk 0:02:50.8]} 11. Rc1 {[%clk 0:02:37.7]}
11... Bd6 {[%clk 0:02:47.8]} 12. Re1 {[%clk 0:02:32.6]} 12... Bg6 {[%clk
0:02:37.8]} 13. a3 {[%clk 0:02:30.9]} 13... a5 {[%clk 0:02:36.6]} 14. Nb1 {[%clk
0:02:19.4]} 14... e5 {[%clk 0:02:33.9]} 15. Nc3 {[%clk 0:02:17.1]} 15... e4
{[%clk 0:02:29.1]} 16. dxe4 {[%clk 0:02:03.1]} 16... dxe4 {[%clk 0:02:27.9]} 17.
Nd4 {[%clk 0:02:03.6]} 17... Bxg3 {[%clk 0:02:06]} 18. Nxc6 {[%clk 0:01:28.1]}
18... Bxf2+ {[%clk 0:02:03.7]} 19. Kxf2 {[%clk 0:01:27.4]} 19... Ng4+ {[%clk
0:02:03.8]} 20. Kg1 {[%clk 0:01:20.2]} 20... Qh4 {[%clk 0:02:03.4]} 21. Ne7+
{[%clk 0:00:54.1]} 21... Kh7 {[%clk 0:02:02.3]} 22. Qd6 {[%clk 0:00:51.6]} 22...
Qf2+ {[%clk 0:01:16.7]} 23. Kh1 {[%clk 0:00:51.4]} 23... Qe3 {[%clk 0:01:13.1]}
24. Nd1 {[%clk 0:00:41.8]} 24... Qg5 {[%clk 0:01:08.5]} 25. h3 {[%clk
0:00:28.2]} 25... Rad8 {[%clk 0:00:48.6]} 26. Qg3 {[%clk 0:00:28]} 26... Qxe7
{[%clk 0:00:48.1]} 27. hxg4 {[%clk 0:00:27.1]} 27... Rd5 {[%clk 0:00:44.6]} 28.
Ne3 {[%clk 0:00:26.3]} 28... Rg5 {[%clk 0:00:43.3]} 29. Rc7 {[%clk 0:00:24.8]}
29... Qe6 {[%clk 0:00:39.8]} 30. Qf4 {[%clk 0:00:20.6]} 30... f6 {[%clk
0:00:33.6]} 31. Rd1 {[%clk 0:00:19.6]} 31... Qxb3 {[%clk 0:00:28.3]} 32. Ba1
{[%clk 0:00:13.3]} 32... h5 {[%clk 0:00:27]} 33. Rxg7+ {[%clk 0:00:10.1]} 33...
Kxg7 {[%clk 0:00:25.1]} 34. Qxg5 {[%clk 0:00:10.2]} 34... Rf7 {[%clk 0:00:18.1]}
35. Nf5+ {[%clk 0:00:07.4]} 35... Kh8 {[%clk 0:00:07.9]} 36. Rd8+ {[%clk
0:00:06.5]} 36... Kh7 {[%clk 0:00:06.9]} 37. Qh6# {[%clk 0:00:06.5]} 1-0

[Event "Late-Titled-Tuesday-Blitz-February-06-2024"]
[Site "Chess.com"]
[Date "2024.02.06"]
[Round "6"]
[White "Teidi96"]
[Black "Vasily85"]
[Result "1-0"]
[WhiteElo "2356"]
[BlackElo "2495"]
[TimeControl "180+1"]
[EndTime "15:06:33 PST"]
[Termination "Teidi96 won on time"]

1. e4 {[%clk 0:02:58.8]} 1... c5 {[%clk 0:02:55.9]} 2. Nf3 {[%clk 0:02:56.9]}
2... Nc6 {[%clk 0:02:55.3]} 3. d4 {[%clk 0:02:56.5]} 3... cxd4 {[%clk
0:02:54.4]} 4. Nxd4 {[%clk 0:02:57.4]} 4... g6 {[%clk 0:02:54.9]} 5. c4 {[%clk
0:02:57]} 5... Nf6 {[%clk 0:02:55.2]} 6. Nc3 {[%clk 0:02:56.9]} 6... d6 {[%clk
0:02:55.7]} 7. Be2 {[%clk 0:02:56.2]} 7... Nxd4 {[%clk 0:02:55.9]} 8. Qxd4
{[%clk 0:02:55.9]} 8... Bg7 {[%clk 0:02:56.8]} 9. Qe3 {[%clk 0:02:55.8]} 9...
O-O {[%clk 0:02:46.9]} 10. O-O {[%clk 0:02:55.5]} 10... a5 {[%clk 0:02:32.1]}
11. Rd1 {[%clk 0:02:54]} 11... Qc7 {[%clk 0:02:09.7]} 12. Rb1 {[%clk 0:02:53.4]}
12... Bd7 {[%clk 0:02:04.1]} 13. b3 {[%clk 0:02:53.2]} 13... Bc6 {[%clk
0:01:57.6]} 14. Bb2 {[%clk 0:02:49]} 14... Rfc8 {[%clk 0:01:51.7]} 15. a3 {[%clk
0:02:38.3]} 15... Nd7 {[%clk 0:01:41.7]} 16. b4 {[%clk 0:02:34.3]} 16... axb4
{[%clk 0:01:40.6]} 17. axb4 {[%clk 0:02:34.7]} 17... b6 {[%clk 0:01:01.4]} 18.
Ra1 {[%clk 0:02:08.4]} 18... Rxa1 {[%clk 0:00:48.4]} 19. Rxa1 {[%clk 0:02:07]}
19... Ra8 {[%clk 0:00:48.9]} 20. Rxa8+ {[%clk 0:01:58.2]} 20... Bxa8 {[%clk
0:00:49.8]} 21. Nb5 {[%clk 0:01:57.7]} 21... Qc8 {[%clk 0:00:35.1]} 22. Bxg7
{[%clk 0:01:56.5]} 22... Kxg7 {[%clk 0:00:35.5]} 23. Qc3+ {[%clk 0:01:49.3]}
23... Kg8 {[%clk 0:00:35.4]} 24. f3 {[%clk 0:01:44.1]} 24... Qa6 {[%clk
0:00:24.6]} 25. Qb2 {[%clk 0:01:28.4]} 25... Qa4 {[%clk 0:00:22.2]} 26. Nc3
{[%clk 0:01:17.9]} 26... Qa7 {[%clk 0:00:22.1]} 27. Kf1 {[%clk 0:01:13.2]} 27...
Ne5 {[%clk 0:00:21.4]} 28. Qa2 {[%clk 0:01:07.2]} 28... Qxa2 {[%clk 0:00:16.6]}
29. Nxa2 {[%clk 0:01:08.1]} 29... Bc6 {[%clk 0:00:16.5]} 30. Nc3 {[%clk
0:01:06.5]} 30... e6 {[%clk 0:00:14.5]} 31. Kf2 {[%clk 0:01:05.4]} 31... Kf8
{[%clk 0:00:14.1]} 32. Ke3 {[%clk 0:01:06]} 32... g5 {[%clk 0:00:14.2]} 33. g3
{[%clk 0:01:00.5]} 33... Ke7 {[%clk 0:00:14.3]} 34. f4 {[%clk 0:01:00.5]} 34...
gxf4+ {[%clk 0:00:14.6]} 35. gxf4 {[%clk 0:01:01.4]} 35... Ng6 {[%clk
0:00:15.4]} 36. b5 {[%clk 0:01:00.7]} 36... Bb7 {[%clk 0:00:15.4]} 37. Na4
{[%clk 0:01:01.3]} 37... e5 {[%clk 0:00:08.2]} 38. f5 {[%clk 0:00:57.9]} 38...
Nf4 {[%clk 0:00:08.4]} 39. Bf1 {[%clk 0:00:56.3]} 39... Kf6 {[%clk 0:00:04]} 40.
Nxb6 {[%clk 0:00:55.5]} 40... Kg5 {[%clk 0:00:04.3]} 41. c5 {[%clk 0:00:43]}
41... dxc5 {[%clk 0:00:04.3]} 42. Nd7 {[%clk 0:00:43.2]} 42... Kg4 {[%clk
0:00:01.1]} 43. Nxe5+ {[%clk 0:00:43.2]} 43... Kg5 {[%clk 0:00:01.7]} 44. Nxf7+
{[%clk 0:00:43.2]} 44... Kg4 {[%clk 0:00:01.7]} 45. Nd6 {[%clk 0:00:43.7]} 45...
Ba8 {[%clk 0:00:01.6]} 46. b6 {[%clk 0:00:40]} 1-0